[Event "Fredericia Candidate 2022"]
[Site "Fredericia"]
[Date "2022.05.28"]
[Round "3.3"]
[White "Thuesen, Mogens"]
[Black "Stentebjerg-Hansen, Per"]
[Result "1-0"]
[ECO "A40"]
[WhiteElo "2255"]
[BlackElo "2191"]
[Annotator "TA"]
[PlyCount "59"]
[EventDate "2022.05.25"]
[EventType "swiss"]
[EventCountry "DEN"]
[SourceTitle "playchess.com"]
[Source "ChessBase"]
[SourceQuality "1"]
[TimeControl "40/5400+30:1800+30"]

{[%evp 9,59,71,85,66,63,61,56,52,54,43,102,75,94,91,104,69,102,104,95,100,132,109,145,119,126,114,168,176,210,216,213,197,204,177,176,189,206,162,169,166,312,89,337,350,343,361,947,945,1462,1429,1254,813]} 1. d4 {[%emt 0:03:50]} b6 {[%emt 0:00:21]} 2. e4 {[%emt 0:00:16]} Bb7 {[%emt 0:00:11]} 3. Bd3 {[%emt 0:00:07]} e6 {[%emt 0:00:28]} 4. Nf3 {[%emt 0:01:00]} d6 {[%emt 0:00:23]} 5. O-O {[%emt 0:00:18]} g6 {[%emt 0:00:27]} 6. c4 {[%emt 0:00:32] B00: Queen's Fianchetto Defence, Nimzowitsch Defence.} Bg7 {[%emt 0:00:34]} 7. Nc3 {[%emt 0:00:22]} (7. Bg5 {seems wilder.} Ne7 8. Qd2 h6 9. Be3) 7... Ne7 {[%emt 0:00:31]} 8. Be3 {[%emt 0:01:09] White is slightly better.} Nd7 {[%emt 0:00:46]} 9. Qd2 {[%emt 0:01:52]} h6 {[%emt 0:00:06]} (9... e5 $14) 10. Bc2 {[%emt 0:02:40] [#]} g5 $146 {[%emt 0:01:21]} ({Predecessor:} 10... a6 11. b4 g5 12. h3 Nf6 13. Rad1 g4 14. Nh2 gxh3 15. g3 h5 16. Qe2 Ng4 {1-0 (45) Hracek,Z (2610)-Blatny,P (2388) Ostrava 2017}) 11. d5 {[%emt 0:07:21]} e5 {[%emt 0:00:15] Inhibits Nd4.} 12. Kh1 {[%emt 0:08:51]} O-O {[%emt 0:09:55]} 13. Ng1 {[%emt 0:01:13][%cal Bf3g1,Bg1e2,Be2g3][%mdl 32] White is more active.} Nf6 {[%emt 0:05:35]} 14. Nge2 {[%emt 0:03:15]} Ng6 {[%emt 0:07:02]} 15. Ng3 {[%emt 0:00:46]} Nf4 {[%emt 0:03:16]} 16. b4 {[%emt 0:07:04]} a6 {[%emt 0:00:43]} 17. c5 {[%emt 0:01:56]} bxc5 {[%emt 0:09:02]} (17... Bc8 $16 {keeps fighting.}) 18. bxc5 $18 {[%emt 0:00:21]} dxc5 {[%emt 0:07:45]} 19. Bxc5 {[%emt 0:01:30]} Re8 {[%emt 0:00:26]} 20. Ba4 {[%emt 0:06:53] Inhibits c6.} Nd7 {[%emt 0:01:10]} 21. Ba3 {[%emt 0:03:10] aiming for Rab1.} Bf8 {[%emt 0:03:08]} 22. Bxf8 {[%emt 0:12:39]} Rxf8 {[%emt 0:00:35]} 23. Nf5 {[%emt 0:00:12] Black must now prevent g3.} Kh7 {[%emt 0:01:50]} 24. Rab1 $36 {[%emt 0:02:21][%cal Ba1b1,Bb1b7,Bb7b4][%mdl 2080] White is on the roll.} Nc5 {[%emt 0:03:48]} (24... Bc8 {was worth a try.} 25. Ne3 Nb6) 25. g3 $2 {[%emt 0:08:12]} (25. Qe3 $18 {and White stays clearly on top.} Nxa4 26. Rxb7 Nxc3 27. Qxc3) 25... Ng6 $2 {[%emt 0:07:44] A mistake that costs the game.} (25... Nxd5 $16 {might work better.} 26. exd5 Nxa4) 26. Qe3 {[%emt 0:01:40]} Nxa4 {[%emt 0:01:03]} 27. Rxb7 {[%emt 0:01:10]} ({Not} 27. Nxa4 Bc8 $16) 27... Qc8 $2 {[%emt 0:05:30] [#]} (27... Nxc3 28. Qxc3 Ne7) 28. Qf3 $1 {[%emt 0:01:20][%cal Of3h5] And now Qh5! would win. White is clearly winning.} Nf4 {[%emt 0:02:57] [#] Inhibits Qh5.} (28... Nxc3 29. Qh5) 29. gxf4 $1 {[%emt 0:03:18][%cal Of3h3] Qh3! would kill now.} Rg8 {[%emt 0:01:21]} (29... a5 30. Qh5) 30. Rb4 {[%emt 0:03:48] Weighted Error Value: White=0.31/Black=0.41} 1-0

[Event "Fredericia Candidate 2022"]
[Site "Fredericia"]
[Date "2022.05.28"]
[Round "3.4"]
[White "Andries, Alf"]
[Black "Hoiberg, Nina"]
[Result "0-1"]
[ECO "C44"]
[WhiteElo "2049"]
[BlackElo "2183"]
[Annotator "TA"]
[PlyCount "36"]
[EventDate "2022.05.25"]
[EventType "swiss"]
[EventCountry "DEN"]
[SourceTitle "playchess.com"]
[Source "ChessBase"]
[SourceQuality "1"]
[TimeControl "40/5400+30:1800+30"]

{[%evp 9,36,26,29,14,38,-35,-8,-105,-104,-91,-108,-147,-38,-42,-56,-119,-115,-193,-204,-261,-243,-708,-697,-735,-735,-1363,-1363,-1343,-1218]} 1. e4 {[%emt 0:00:03]} e5 {[%emt 0:02:49]} 2. Nf3 {[%emt 0:00:09]} Nc6 {[%emt 0:00:38]} 3. d4 {[%emt 0:00:07]} exd4 {[%emt 0:00:16]} 4. Nxd4 {[%emt 0:00:07]} Qf6 {[%emt 0:00:54]} 5. Nb3 {[%emt 0:00:25]} Qg6 {[%emt 0:04:31]} 6. f3 {[%emt 0:01:02] C45: Scotch Game.} Nf6 {[%emt 0:01:35][%cal Od7d5]} 7. Be3 {[%emt 0:03:57]} (7. Bf4 $14) 7... d5 {[%emt 0:07:01]} 8. exd5 {[%emt 0:21:25]} (8. Nc3 $1 $11 {remains equal.}) 8... Nb4 $1 $17 {[%emt 0:02:55][%csl LRc2,LRd5] [#]} 9. Na3 $146 {[%emt 0:03:43]} ({Predecessor:} 9. c4 Nc2+ 10. Kf2 Nxa1 11. Nxa1 Bd6 12. Nb3 O-O 13. Nd4 Bf5 14. Nc3 Rfe8 15. Nce2 {0-1 (68) Bauma,J (2254)-Olsar,J (2327) Czech Republic 2002}) 9... Nfxd5 {[%emt 0:06:03]} 10. Qe2 {[%emt 0:02:43]} Nxe3 {[%emt 0:09:55] Black is more active.} (10... Be6 $17 {White must now prevent ...0-0-0.} 11. Qb5+ Bd7 12. Qxb7 Rd8) 11. Qxe3+ $15 {[%emt 0:00:18]} Be7 {[%emt 0:10:01][%cal Og6c2,Bf8e7,Be7g5,Bg5e3][%mdl 32]} 12. c3 {[%emt 0:09:45]} (12. O-O-O $1 $15) 12... Nd5 $36 {[%emt 0:01:23][%mdl 2048] Black is on the roll.} 13. Qe5 {[%emt 0:04:57] [#]} ({Not} 13. Bb5+ $2 c6 14. Qd2 Bf5 $1 $19) (13. Qd3 $17 {keeps fighting.} c6 14. Qxg6 hxg6 15. Nc4) 13... Be6 $1 $19 {[%emt 0:03:07] Strongly threatening ...0-0-0.} 14. Nb5 {[%emt 0:06:56]} O-O {[%emt 0:03:22]} 15. Qg3 {[%emt 0:07:55]} ({Avoid the trap} 15. Nxc7 $2 Nxc7 16. Qxc7 Bxb3 17. axb3 Bh4+ 18. g3 Rfe8+ 19. Be2 Qc2 $19) (15. Kf2) 15... Qh6 {[%emt 0:08:18] Black is clearly winning.} 16. Qf2 {[%emt 0:00:13]} Bg5 {[%emt 0:03:00]} 17. Nd2 {[%emt 0:03:23]} Be3 {[%emt 0:02:44]} 18. Qe2 {[%emt 0:00:07] [#]} Nf4 $1 {[%emt 0:00:17] Weighted Error Value: White=0.97/Black=0.16 (very precise)} 0-1

[Event "Fredericia Candidate 2022"]
[Site "Fredericia"]
[Date "2022.05.28"]
[Round "3.5"]
[White "Petersen, Steen"]
[Black "Pedersen, Lars Wilton"]
[Result "0-1"]
[ECO "B01"]
[WhiteElo "2103"]
[BlackElo "2006"]
[Annotator "TA"]
[PlyCount "52"]
[EventDate "2022.05.25"]
[EventType "swiss"]
[EventCountry "DEN"]
[SourceTitle "playchess.com"]
[Source "ChessBase"]
[SourceQuality "1"]
[TimeControl "40/5400+30:1800+30"]

{[%evp 12,52,6,4,52,46,53,45,42,39,37,38,55,69,82,53,77,-9,0,-16,-15,-23,38,0,0,-29,-19,-37,-42,-42,-19,-83,-82,-277,-268,-245,-270,-254,-260,-784,-796,-2027,-1981]} 1. e4 {[%emt 0:00:10]} d5 {[%emt 0:00:20]} 2. exd5 {[%emt 0:00:07]} Nf6 {[%emt 0:00:05]} 3. d4 {[%emt 0:00:41]} Nxd5 {[%emt 0:00:21]} 4. Nf3 {[%emt 0:00:24]} g6 {[%emt 0:00:17]} 5. Bg5 {[%emt 0:02:52][%cal Bc1g5,Bg5h4,Bh4g3,Bg3e5][%mdl 32]} Bg7 {[%emt 0:00:16]} 6. Nbd2 {[%emt 0:00:38]} O-O {[%emt 0:00:40]} 7. c3 {[%emt 0:01:25]} b6 {[%emt 0:05:55] A48: 1 d4 Nf6 2 Nf3 g6: Torre, London and Colle Systems.} (7... h6 $11 8. Bh4 Nc6) 8. Bc4 $14 {[%emt 0:02:16]} Bb7 {[%emt 0:00:33]} 9. O-O {[%emt 0:00:36]} h6 {[%emt 0:04:54] White is slightly better.} 10. Bh4 {[%emt 0:04:57]} Nd7 {[%emt 0:03:37]} 11. Re1 {[%emt 0:00:54] [#] aiming for Bxd5.} g5 $146 {[%emt 0:02:18]} ({Predecessor:} 11... N7f6 12. a4 a5 13. Qb3 Qd7 14. Ne5 Qf5 15. Ndf3 e6 16. Bg3 Nf4 17. Bxf4 Qxf4 {1-0 (31) Bindrich,F (2512)-Eames,R (2304) Hastings 2007}) 12. Bg3 {[%emt 0:01:55]} c5 {[%emt 0:00:55]} 13. Qb3 {[%emt 0:03:32]} cxd4 {[%emt 0:04:28]} 14. cxd4 {[%emt 0:02:49]} (14. Bxd5 $16 Nc5 {[#]} 15. Bxb7 $1 Nxb3 16. Nxb3) 14... N7f6 $11 {[%emt 0:02:37]} 15. Be5 {[%emt 0:04:42]} e6 {[%emt 0:00:50]} 16. Rad1 {[%emt 0:03:26]} Qe7 {[%emt 0:10:56]} ({Black should play} 16... Rc8 $11) 17. a3 {[%emt 0:02:41]} (17. h4 $5 {[%cal Rh4g5]}) 17... Rfd8 {[%emt 0:00:22]} 18. Nf1 {[%emt 0:03:27]} a6 {[%emt 0:06:16]} 19. Ng3 {[%emt 0:04:01]} b5 {[%emt 0:02:23]} 20. Bf1 {[%emt 0:00:15]} Nf4 {[%emt 0:03:58]} 21. h4 {[%emt 0:34:22]} (21. Bxf4 $11 {keeps the balance.} gxf4 22. Nf5) 21... Bd5 $17 {[%emt 0:01:31] Black is more active.} 22. Qe3 {[%emt 0:03:00] Now White is beyond hope.} (22. Qc3 $17) 22... Ng4 $1 $19 {[%emt 0:00:33][%csl LRe3,LRh4]} 23. Qd2 {[%emt 0:01:37] Hoping for Bxg7.} Bxf3 {[%emt 0:02:02]} 24. Bxg7 {[%emt 0:00:48]} Bxd1 {[%emt 0:01:40] Chess con chili.} 25. hxg5 $2 {[%emt 0:02:50]} (25. Qxd1 h5 26. Be5) 25... Qxg5 {[%emt 0:00:47][%cal Og5h4] ( -> ...Qh4!)} 26. Rxd1 {[%emt 0:02:01] [#]} Qh4 $1 {[%emt 0:06:30] Weighted Error Value: White=0.86/Black=0.15 (very precise)} 0-1

[Event "Fredericia Candidate 2022"]
[Site "Fredericia"]
[Date "2022.05.28"]
[Round "3.6"]
[White "Zander, Emil"]
[Black "Hye, Allan"]
[Result "1-0"]
[ECO "B18"]
[WhiteElo "2018"]
[BlackElo "2072"]
[Annotator "TA"]
[PlyCount "78"]
[EventDate "2022.05.25"]
[EventType "swiss"]
[EventCountry "DEN"]
[SourceTitle "playchess.com"]
[Source "ChessBase"]
[SourceQuality "1"]
[TimeControl "40/5400+30:1800+30"]

{[%evp 17,78,22,33,29,52,51,55,54,56,48,48,47,36,34,43,33,37,34,47,29,57,50,60,38,56,44,36,33,41,33,54,39,29,-270,31,25,25,33,39,27,68,12,0,0,0,0,0,0,0,0,62,27,27,27,85,94,147,154,151,150,202,166,327]} 1. e4 {[%emt 0:00:05]} c6 {[%emt 0:00:17]} 2. d4 {[%emt 0:00:09]} d5 {[%emt 0:00:07]} 3. Nc3 {[%emt 0:00:06]} dxe4 {[%emt 0:00:05]} 4. Nxe4 {[%emt 0:00:08]} Bf5 {[%emt 0:00:05]} 5. Ng3 {[%emt 0:00:08]} Bg6 {[%emt 0:00:05]} 6. N1e2 {[%emt 0:00:11]} e6 {[%emt 0:01:15]} 7. Nf4 {[%emt 0:00:17]} Bd6 {[%emt 0:00:27]} 8. h4 {[%emt 0:00:31]} Qc7 {[%emt 0:03:57]} 9. Nxg6 {[%emt 0:00:15]} hxg6 {[%emt 0:00:17]} 10. Ne4 {[%emt 0:00:08] B18: Classical Caro-Kann: 4...Bf5 sidelines.} Bf4 {[%emt 0:12:38]} 11. Bxf4 {[%emt 0:00:39]} Qxf4 {[%emt 0:00:03]} 12. Ng5 {[%emt 0:00:09] White is slightly better.} Nd7 {[%emt 0:07:23]} 13. g3 {[%emt 0:01:09]} Qc7 {[%emt 0:04:11]} 14. Bh3 {[%emt 0:03:28] [#]} Ngf6 $146 {[%emt 0:22:17]} ({Predecessor:} 14... Ndf6 15. Qe2 Ne7 16. O-O-O Nf5 17. h5 Nxd4 18. Rxd4 Rxh5 19. f4 Qe7 20. Bg2 Qc5 21. Rhd1 Rh2 22. Bxc6+ {1-0 (22) Kejzar,P (1930)-Franciskovic,B (2309) Bol 2015}) 15. Qe2 {[%emt 0:01:18]} Qa5+ {[%emt 0:10:27]} 16. c3 {[%emt 0:03:41]} O-O {[%emt 0:04:16]} 17. O-O {[%emt 0:02:39][%cal Og5f7,Bh1f1,Bf1e1,Be1e5][%mdl 32]} Rfe8 {[%emt 0:03:36]} 18. Qc2 {[%emt 0:09:55]} Nf8 {[%emt 0:02:01]} 19. Rfe1 {[%emt 0:05:43]} Rad8 {[%emt 0:02:18]} 20. Re5 {[%emt 0:05:40]} Rd5 {[%emt 0:06:44]} 21. Qb3 {[%emt 0:08:37]} Qc7 {[%emt 0:07:01]} 22. Bg2 {[%emt 0:01:11]} Rxe5 {[%emt 0:03:27]} 23. dxe5 {[%emt 0:00:15]} Ng4 {[%emt 0:01:09]} 24. f4 {[%emt 0:01:14]} Rd8 {[%emt 0:05:18]} 25. c4 $2 {[%emt 0:07:14][%mdl 8192] [#]} (25. Bf3 $11 {and White has nothing to worry.} Ne3 26. Ne4) 25... Qb6+ $2 {[%emt 0:02:39]} ({And not} 25... Rd2 26. Ne4 Re2 27. Rd1 $15) (25... Rd3 $1 $19 {[%cal Rd3b3][%mdl 512]} 26. Qc2 (26. Qxd3 $2 {perishes.} Qb6+ 27. Kh1 Nf2+ 28. Kh2 Nxd3 $19) 26... Rxg3) 26. Qxb6 $14 {[%emt 0:00:12]} axb6 {[%emt 0:00:02]} 27. Ne4 {[%emt 0:06:43]} Ne3 {[%emt 0:01:17]} 28. Nd6 {[%emt 0:00:31]} Rd7 {[%emt 0:00:17]} 29. Be4 {[%emt 0:01:24]} (29. Kf2 $14 Nf5 30. Rd1) 29... f6 $11 {[%emt 0:00:41]} 30. Re1 {[%emt 0:05:07]} fxe5 {[%emt 0:00:04]} 31. Nxb7 {[%emt 0:01:11]} exf4 {[%emt 0:00:37]} 32. gxf4 {[%emt 0:02:52]} Nxc4 {[%emt 0:00:39]} 33. b3 {[%emt 0:01:08]} Na5 {[%emt 0:00:44]} ({Better is} 33... Rxb7 $11 34. bxc4 Rf7) 34. Nxa5 $14 {[%emt 0:00:33] White is more active.} bxa5 {[%emt 0:00:01]} 35. Bxc6 {[%emt 0:00:08] KRB-KRN} Rd2 {[%emt 0:00:39]} (35... Rd6 $1 $11 {keeps the balance.} 36. Bf3 Nd7) 36. a4 $16 {[%emt 0:00:59]} Rc2 {[%emt 0:00:38]} (36... Rd6 $142 37. Rc1 Nd7) 37. Bb5 {[%emt 0:01:36] White is clearly better.} Rc5 {[%emt 0:00:33]} 38. Re5 {[%emt 0:00:55]} Rc7 {[%emt 0:00:39]} (38... Rxe5 $16 39. fxe5 Kf7) 39. Bc4 {[%emt 0:00:17]} Kf7 $2 {Weighted Error Value: White=0.28 (precise) /Black=0.26 (precise)} (39... Ra7 40. Kg2 (40. Bxe6+ Nxe6 41. Rxe6 Rb7 $16) 40... Kf7) 1-0

[Event "Fredericia Candidate 2022"]
[Site "Fredericia"]
[Date "2022.05.29"]
[Round "4.1"]
[White "Motzkus, Mikkel"]
[Black "Loftgaard, Mikkel Vinh"]
[Result "1-0"]
[ECO "A36"]
[WhiteElo "1993"]
[BlackElo "2072"]
[Annotator "TA"]
[PlyCount "67"]
[EventDate "2022.05.25"]
[EventType "swiss"]
[EventCountry "DEN"]
[SourceTitle "playchess.com"]
[Source "ChessBase"]
[SourceQuality "1"]
[TimeControl "40/5400+30:1800+30"]

{[%evp 9,66,17,18,17,12,-32,-15,-13,-19,-7,0,-6,0,-1,-8,-63,-70,-108,-104,-127,-61,-192,-147,-177,-186,-700,-696,-744,-179,-177,-167,-174,-179,-200,-204,-173,-151,-368,-261,-256,-250,-241,-167,-141,-133,-133,-129,-212,-190,-196,-171,-158,-150,-143,29997,29998,29998,29999,29999]} 1. c4 {[%emt 0:00:27]} c5 {[%emt 0:01:57]} 2. Nc3 {[%emt 0:00:11]} Nc6 {[%emt 0:00:06]} 3. g3 {[%emt 0:00:08]} Nf6 {[%emt 0:00:08]} 4. Bg2 {[%emt 0:00:14]} e6 {[%emt 0:00:09]} 5. e4 {[%emt 0:06:08]} d5 {[%emt 0:00:37]} 6. exd5 {[%emt 0:08:42] A19: English Opening: Flohr-Mikenas System with 3...c5.} exd5 {[%emt 0:03:11]} 7. d3 {[%emt 0:12:48][%cal Rc3d5]} Be6 {[%emt 0:02:53] [#]} 8. Bg5 $146 {[%emt 0:06:40] The position is equal.} ({Predecessor:} 8. cxd5 Nxd5 9. Nge2 Be7 10. O-O O-O 11. Nf4 Nxc3 12. bxc3 Qd7 13. Nxe6 Qxe6 14. Re1 {½-½ (32) Dmitriev,S (1916)-Pshenichny,V (2024) St Petersburg 2011}) 8... dxc4 {[%emt 0:02:29]} 9. dxc4 {[%emt 0:00:17]} Be7 {[%emt 0:01:34]} 10. b3 {[%emt 0:12:04]} h6 {[%emt 0:03:07]} 11. Be3 {[%emt 0:14:42]} Ng4 {[%emt 0:04:40]} 12. Nd5 {[%emt 0:06:16]} (12. Nge2 $11) 12... Nxe3 $15 {[%emt 0:03:43]} 13. Nxe3 {[%emt 0:04:31] [#]} Qa5+ $1 {[%emt 0:02:25]} 14. Qd2 {[%emt 0:04:21]} Nb4 {[%emt 0:02:36]} ({Black should play} 14... Qxd2+ $17 15. Kxd2 O-O-O+ 16. Bd5 Bf6) 15. Ke2 {[%emt 0:04:35]} (15. Rd1 $1 $15) 15... Bf6 {[%emt 0:07:20]} 16. Rd1 {[%emt 0:01:20]} O-O {[%emt 0:00:40]} 17. Nh3 $2 {[%emt 0:05:14]} (17. Kf1) 17... Rad8 $19 {[%emt 0:01:49]} 18. Nd5 {[%emt 0:00:42] [#]} Bxd5 $2 {[%emt 0:00:54]} (18... Rxd5 $1 {[%mdl 512]} 19. Bxd5 Bxh3) 19. Bxd5 {[%emt 0:00:47]} Qa3 {[%emt 0:00:24] ...b5 is the strong threat.} ({Weaker is} 19... Qc7 20. Nf4 $15) 20. Nf4 {[%emt 0:04:15]} Nxa2 {[%emt 0:01:48]} 21. Kf3 {[%emt 0:02:20]} Qxb3+ {[%emt 0:00:37]} 22. Kg2 {[%emt 0:00:08]} Nc3 {[%emt 0:00:48] Against Rb1. Threatens to win with ...b5.} 23. Rc1 $2 {[%emt 0:02:12]} (23. Qd3 $17 {was called for.}) 23... b5 {[%emt 0:03:13]} 24. Qd3 {[%emt 0:01:29]} bxc4 {[%emt 0:01:39]} 25. Qxc4 {[%emt 0:00:55]} Qxc4 {[%emt 0:00:20]} 26. Bxc4 {[%emt 0:00:02]} Rd2 {[%emt 0:01:46] Against Rc2. Strongly threatening ...g5.} 27. Rhe1 {[%emt 0:01:49]} Bd4 {[%emt 0:04:11]} 28. Re7 {[%emt 0:00:10]} (28. Ne2 $17 {is a better defense.} Nxe2 29. Rxe2 Rxe2 30. Bxe2) 28... Rxf2+ {[%emt 0:00:07]} 29. Kh1 {[%emt 0:00:55]} a5 {[%emt 0:00:32]} 30. Ng6 {[%emt 0:00:30]} Rb8 {[%emt 0:00:19] White must now prevent ...Rf6.} 31. Nf4 {[%emt 0:00:20]} Rbb2 $2 {[%emt 0:00:13][%mdl 8192]} (31... Kh8 $17 32. Rxf7 Ne4) 32. Bxf7+ {[%emt 0:00:16] White mates.} Kh8 33. Re8+ Kh7 34. Bg6# {White used his chance.  Weighted Error Value: White=0.57/Black=0.57} 1-0

[Event "Fredericia Candidate 2022"]
[Site "Fredericia"]
[Date "2022.05.29"]
[Round "4.2"]
[White "Medhus, Vitus Bondo"]
[Black "Thuesen, Mogens"]
[Result "1-0"]
[ECO "B40"]
[WhiteElo "2100"]
[BlackElo "2255"]
[Annotator "TA"]
[PlyCount "78"]
[EventDate "2022.05.25"]
[EventType "swiss"]
[EventCountry "DEN"]
[SourceTitle "playchess.com"]
[Source "ChessBase"]
[SourceQuality "1"]
[TimeControl "40/5400+30:1800+30"]

{[%evp 10,78,46,1,14,1,6,0,35,0,0,0,0,0,0,0,0,0,0,0,16,-6,0,0,-4,-20,17,22,18,23,28,24,186,196,207,200,266,264,331,316,331,327,322,315,321,297,302,312,292,273,295,294,341,322,348,318,340,346,331,314,310,298,314,149,142,145,134,128,694,684,29978]} 1. e4 {[%emt 0:00:02]} c5 {[%emt 0:01:14]} 2. Nf3 {[%emt 0:00:10]} e6 {[%emt 0:00:14]} 3. d4 {[%emt 0:00:11]} cxd4 {[%emt 0:00:06]} 4. Nxd4 {[%emt 0:00:09]} Nf6 {[%emt 0:00:06]} 5. Bd3 {[%emt 0:01:12]} a6 {[%emt 0:00:21]} 6. c4 {[%emt 0:00:40]} Qc7 {[%emt 0:02:05] B42: Sicilian: Kan Variation: 5 Bd3.} 7. a3 {[%emt 0:02:09] 7.Nc3 is a critical line.} Nc6 {[%emt 0:09:00]} 8. Nf3 {[%emt 0:02:36] [#]} b6 $146 {[%emt 0:03:25] The position is equal.} (8... b5 $5) ({Predecessor:} 8... Be7 9. Nbd2 O-O 10. O-O b6 11. b4 a5 12. b5 Ne5 13. Qc2 Ng6 14. Re1 d6 15. Bb2 e5 16. Nf1 Bg4 17. N3d2 Nf4 18. Ng3 N6h5 19. Be2 Bxe2 20. Nxe2 Nxe2+ 21. Rxe2 Nf4 22. Ree1 {½-½ (22) Sanchez Garcia,R (1402)-Gonzalez Manrique,M (1683) Pontevedra 2018}) 9. b4 {[%emt 0:02:26]} a5 {[%emt 0:04:53]} 10. b5 {[%emt 0:01:22]} Ne5 {[%emt 0:00:08]} 11. Nxe5 {[%emt 0:09:40]} Qxe5 {[%emt 0:00:08]} 12. Qc2 {[%emt 0:02:24]} Bb7 {[%emt 0:02:15][%cal Rb7e4]} (12... Qxa1 $2 13. Bb2 Qxb2 14. Qxb2 $16) 13. Bb2 {[%emt 0:04:45]} Qg5 {[%emt 0:10:06]} 14. O-O {[%emt 0:05:28]} Bc5 {[%emt 0:16:48]} 15. Nd2 {[%emt 0:09:43]} O-O {[%emt 0:03:26]} 16. Nf3 {[%emt 0:10:34]} Qg4 {[%emt 0:01:30][%cal Rb7e4]} 17. h3 {[%emt 0:09:12]} Qh5 {[%emt 0:01:42]} 18. e5 {[%emt 0:02:09]} Ne8 {[%emt 0:03:38]} 19. Be4 {[%emt 0:01:38]} Bxe4 {[%emt 0:00:28]} 20. Qxe4 {[%emt 0:00:07]} Rd8 {[%emt 0:00:48] [#]} (20... d5 $1 $11 {and Black is okay.} 21. cxd5 exd5 22. Qxd5 Nc7) 21. Bd4 $1 $18 {[%emt 0:02:20]} d5 {[%emt 0:03:45]} 22. Qe3 {[%emt 0:00:36]} Rc8 {[%emt 0:09:56]} 23. cxd5 {[%emt 0:00:19]} exd5 {[%emt 0:00:07]} 24. Rac1 {[%emt 0:01:14]} Qh6 {[%emt 0:05:11]} 25. Bxc5 {[%emt 0:03:41]} bxc5 {[%emt 0:00:20]} 26. Qxh6 {[%emt 0:00:19]} gxh6 {[%emt 0:00:05]} 27. Rfd1 {[%emt 0:00:13]} Ng7 {[%emt 0:01:04]} 28. Rxd5 {[%emt 0:01:00]} Ne6 {[%emt 0:00:05]} 29. g3 {[%emt 0:04:54] Against Nf4} a4 {[%emt 0:03:07]} 30. Nd2 {[%emt 0:01:47]} Rfd8 {[%emt 0:02:22]} 31. Rxd8+ {[%emt 0:03:02]} Rxd8 {[%emt 0:00:05][%mdl 4096] Endgame KRN-KRN} 32. Nc4 {[%emt 0:00:47]} Nd4 {[%emt 0:05:28] ...Ne2+ is the strong threat.} 33. Rb1 {[%emt 0:00:42]} Kf8 {[%emt 0:00:54]} 34. Kg2 {[%emt 0:04:51]} Ke7 {[%emt 0:01:19]} 35. b6 {[%emt 0:03:12]} Nb3 {[%emt 0:02:27]} 36. b7 {[%emt 0:06:42]} (36. Nb2 $18) 36... Rb8 $16 {[%emt 0:00:20]} 37. Nb6 {[%emt 0:01:44] White is more active.} Rxb7 {[%emt 0:00:58]} 38. Nxa4 {[%emt 0:00:09]} Ke6 $2 {[%emt 0:00:13][%mdl 8192] [#]} (38... Ra7 $16) 39. Rxb3 $1 $18 {[%emt 0:00:09][%mdl 512]} Kd5 {Weighted Error Value: White=0.10 (very precise) /Black=0.42} (39... Ra7 40. Nxc5+) 1-0